{"text_format":"3","workbook":"xlsx","n_sheets":2,"sheets":["Start","Servicefactuur"],"not_rendered":{"images":2,"defined_names":1},"read":"whole","date_system":"1900"}

{"sheet":"Start","index":0,"n_rows":8,"n_cols":2,"rows_kept":8}
[null,"OVER DEZE SJABLOON"]
[null,"Gebruik deze sjabloon om een factuur Service te maken."]
[null,"Vul het factuurnummer, de datum, de bedrijfsnaam, het adres, de slogan en de factuur in."]
[null,"Voer informatie in tabellen in."]
[null,"Het totaal wordt automatisch berekend."]
[null,"Opmerking: "]
[null,"Kolom A van het werkblad SERVICEFACTUUR bevat aanvullende instructies. Deze tekst is opzettelijk verborgen. Als u tekst wilt verwijderen, selecteert u kolom A en drukt u op Delete. Als u de tekst zichtbaar wilt maken, selecteert u kolom A en wijzigt u de tekenkleur."]
[null,"Als u meer wilt weten over tabellen, drukt u in een tabel op Shift en F10, selecteert u de optie TABEL en vervolgens ALTERNATIEVE TEKST."]

{"sheet":"Servicefactuur","index":1,"n_rows":44,"n_cols":5,"rows_kept":44,"merged":[[0,1,0,2],[0,3,0,4],[2,1,2,3],[3,1,3,3],[4,1,4,2],[5,1,5,2],[6,1,6,2],[7,1,7,2],[41,1,41,2],[41,3,41,4],[43,1,43,4]]}
[null,"De tijdelijke aanduiding voor het logo bevindt zich in deze cel.",null,"FACTUUR"]
[]
[null,"Uw bedrijfsnaam"]
[null,"Uw bedrijfsslogan"]
[null,"Adres",null,"FACTUURNUMMER:","Nr."]
[null,"Postcode en plaats",null,"DATUM ",{"$f":"TODAY()","v":"2022-04-27"}]
[null,"Telefoon Fax",null,"KLANT-ID ","ID"]
[null,"E-mail"]
[null,"AAN","Naam"]
[null,null,"Bedrijfsnaam"]
[null,null,"Adres"]
[null,null,"Postcode en plaats"]
[null,null,"Telefoon"]
[null,"VERKOPER","WERK-","BETALINGSVOORWAARDEN","VERVALDATUM"]
[{"$nulls":3},"Te betalen bij ontvangst"]
[]
[null,"AANTAL","OMSCHRIJVING","EENHEIDSPRIJS","REGELTOTAAL"]
[{"$nulls":4},{"$f":"IF(SUM(B18)>0,SUM(B18*Servicefactuur!$D18),\"\")","v":""}]
[{"$nulls":4},{"$f":"IF(SUM(B19)>0,SUM(B19*Servicefactuur!$D19),\"\")","v":""}]
[{"$nulls":4},{"$f":"IF(SUM(B20)>0,SUM(B20*Servicefactuur!$D20),\"\")","v":""}]
[{"$nulls":4},{"$f":"IF(SUM(B21)>0,SUM(B21*Servicefactuur!$D21),\"\")","v":""}]
[{"$nulls":4},{"$f":"IF(SUM(B22)>0,SUM(B22*Servicefactuur!$D22),\"\")","v":""}]
[{"$nulls":4},{"$f":"IF(SUM(B23)>0,SUM(B23*Servicefactuur!$D23),\"\")","v":""}]
[{"$nulls":4},{"$f":"IF(SUM(B24)>0,SUM(B24*Servicefactuur!$D24),\"\")","v":""}]
[{"$nulls":4},{"$f":"IF(SUM(B25)>0,SUM(B25*Servicefactuur!$D25),\"\")","v":""}]
[{"$nulls":4},{"$f":"IF(SUM(B26)>0,SUM(B26*Servicefactuur!$D26),\"\")","v":""}]
[{"$nulls":4},{"$f":"IF(SUM(B27)>0,SUM(B27*Servicefactuur!$D27),\"\")","v":""}]
[{"$nulls":4},{"$f":"IF(SUM(B28)>0,SUM(B28*Servicefactuur!$D28),\"\")","v":""}]
[{"$nulls":4},{"$f":"IF(SUM(B29)>0,SUM(B29*Servicefactuur!$D29),\"\")","v":""}]
[{"$nulls":4},{"$f":"IF(SUM(B30)>0,SUM(B30*Servicefactuur!$D30),\"\")","v":""}]
[{"$nulls":4},{"$f":"IF(SUM(B31)>0,SUM(B31*Servicefactuur!$D31),\"\")","v":""}]
[{"$nulls":4},{"$f":"IF(SUM(B32)>0,SUM(B32*Servicefactuur!$D32),\"\")","v":""}]
[{"$nulls":4},{"$f":"IF(SUM(B33)>0,SUM(B33*Servicefactuur!$D33),\"\")","v":""}]
[{"$nulls":4},{"$f":"IF(SUM(B34)>0,SUM(B34*Servicefactuur!$D34),\"\")","v":""}]
[{"$nulls":4},{"$f":"IF(SUM(B35)>0,SUM(B35*Servicefactuur!$D35),\"\")","v":""}]
[{"$nulls":4},{"$f":"IF(SUM(B36)>0,SUM(B36*Servicefactuur!$D36),\"\")","v":""}]
[{"$nulls":4},{"$f":"IF(SUM(B37)>0,SUM(B37*Servicefactuur!$D37),\"\")","v":""}]
[{"$nulls":3},"SUBTOTAAL",{"$f":"IF(SUM(E18:E37)>0,SUM(E18:E37),\"\")","v":""}]
[{"$nulls":3},"BTW"]
[{"$nulls":3},"TOTAAL",{"$f":"IF(SUM(E38)>0,SUM((E38*E39)+E38),\"\")","v":""}]
[]
[null,"Schrijf alle cheques uit ten gunste van",null,{"$f":"B3","v":"Uw bedrijfsnaam"}]
[]
[null,"BEDANKT VOOR UW BESTELLING!"]